Workbook

Sheet 表1-水利署
A1: 流域綜合治理計畫截至104年第4季執行情形(表1)
A2: 計畫名稱 | B2: 流域綜合治理計畫-河川區域排水管理及治理 | E2: 計畫期程 | F2: 103/01/01~108/12/31
A3: 主辦機關 | B3: 經濟部水利署 | E3: 主管機關 | F3: 經濟部
A4: 預算執行情形 (單位：千元)
A5: 計畫總經費 | B5: 42,000,000 | E5: 年度可支用數(A) | F5: 5,831,950
B6: 預定進度(%) | D6: 實際進度(%) | F6: 進度差異(百分點)
A7: 年累計 | B7: 74.21 | D7: 74.23 | F7: =D7-B7 -> 0.02
A8: 總累計 | B8: 10.31 | D8: 10.31 | F8: =D8-B8 -> 0
B9: 預定支用數(C) | C9: 實際支用數(D) | D9: 應付未付數(E) | E9: 節餘數(F) | F9: 支用比(%) (D/C) | G9: 執行率(%) (D+E+F)/C | H9: 年度預算達成率(%)(D+E+F/A)
A10: 年累計 | B10: 4,321,746 | C10: 2,342,920 | D10: 1,765,871 | E10: 0 | F10: =C10/B10 -> 54.21% | G10: =(C10+D10+E10)/B10 -> 95.07% | H10: =(C10+D10+E10)/F5 -> 70.45%
A11: 總累計 | B11: 4,324,769 | C11: 2,345,970 | D11: 1,765,871 | E11: 0 | F11: =C11/B11 -> 54.24% | G11: =(C11+D11+E11)/B11 -> 95.08%
A12: 計畫總目標 (GPMnet作業計畫-計畫總目標)
A13: 依據水患治理計畫完成之規劃報告所採用的流域整體綜合治水對策，逐步推動「外水不溢堤，內水不入門」的目標，本計畫完成後，計畫範圍內之河川流域及區域排水集水區預計可增加改善約320平方公里(涵蓋雨水下水道、農田排水及水產養殖排水改善範圍)淹水潛勢地區水患程度，增加保護人口約120萬人，減少災害損失。
A15: 年度計畫目標 (GPMnet執行進度-整體計畫工作項目)
A16: 預定目標 | E16: 截至本季實際已達成目標
A17: 1.辦理本計畫第一期治理工程，並以本年度完成堤防護岸施設30公里以上為目標。 2.辦理第一期應急工程，並以本年度完成堤防護岸施設10公里以上為目標。 | E17: 1.治理工程多數尚於測設及施工階段，截至本季已完成約5.5公里。 2.應急工程截至本季已完成約28.7公里。
A20: 年度工作項目 (GPMnet執行進度-查核點達成情形)
A21: 預定辦理工作項目 | E21: 截至本季實際已完成工作項目
A22: 1.104/03/15：辦理104年應急工程核定事宜。 2.104/03/31：本年度治理工程發包20件。 3.104/05/31：104年應急工程發包20件；本年度治理工程發包30件。 4.104/07/31：104年應急工程發包50件及103年應急工程累積完工50件；本年度治理工程發包40件。 5.104/09/30：第一期應急工程完工60件；本年度治理工程發包50件。 6.104/11/30：第一期應急工程完工70件；本年度治理工程發包60件。 7.104/12/31：第一期應急工程完工100件；本年度治理工程發包70件。 | E22: 1.104年應急工程已於104年4月10日核定。 2.103年應急工程69件已全數發包，其中65件已完工。 3.104年應急工程99件已發包98件，其中12件已完工。 4.治理工程290件已發包90件，其中17件已完工。

Sheet 表1-營建署
A1: 流域綜合治理計畫截至104年第4季執行情形(表1)
A2: 計畫名稱 | B2: 流域綜合治理計畫-雨水下水道 | E2: 計畫期程 | F2: 103-108
A3: 主辦機關 | B3: 內政部營建署 | E3: 主管機關 | F3: 內政部
A4: 預算執行情形 (單位：千元)
A5: 計畫總經費 | B5: 8,980,000 | E5: 年度可支用數(A) | F5: 1,863,042
B6: 預定進度(%) | D6: 實際進度(%) | F6: 進度差異(百分點)
A7: 年累計 | B7: 47.8 | D7: 50.1 | F7: =D7-B7 -> 2.33
A8: 總累計 | B8: 12.0 | D8: 12.46 | F8: =D8-B8 -> 0.5
B9: 預定支用數(C) | C9: 實際支用數(D) | D9: 應付未付數(E) | E9: 節餘數(F) | F9: 支用比(%) (D/C) | G9: 執行率(%) (D+E+F)/C | H9: 年度預算達成率(%)(D+E+F/A)
A10: 年累計 | B10: 920,000 | C10: 584,367 | D10: 229,000 | E10: 120,000 | F10: =C10/B10 -> 63.52% | G10: =(C10+D10+E10)/B10 -> 101.45% | H10: =(C10+D10+E10)/F5 -> 50.10%
A11: 總累計 | B11: 1,074,057 | C11: 801,325 | D11: 229,000 | E11: 120,000 | F11: =C11/B11 -> 74.61% | G11: =(C11+D11+E11)/B11 -> 107.10%
A12: 計畫總目標 (GPMnet作業計畫-計畫總目標)
A13: 103-108年效益量化如下: （一）增加136公里雨水下水道幹線，提升雨水下水道實施率2% （二）增加雨水調節池滯洪量約25萬4000立方公尺 （三）增加都市計畫區保護面積98平方公里
A15: 年度計畫目標 (GPMnet執行進度-整體計畫工作項目)
A16: 預定目標 | E16: 截至本季實際已達成目標
A17: 1.臺南市新營區南興抽水站撈污機增設工程 2.下水道工程-雨水下水道(修復、重建或新建）建設長度25,000公尺。 | E17: 下水道工程-雨水下水道(修復、重建或新建）建設長度15,542公尺。
A20: 年度工作項目 (GPMnet執行進度-查核點達成情形)
A21: 預定辦理工作項目 | E21: 截至本季實際已完成工作項目
A22: 1.辦理103年度年終結算、檢討及工程設計作業。 2.辦理工程設計、管線遷移協調會及發包作業。 3.召開工程進度管控專案會議。 4.10月份預定彰化縣社頭鄉社石路等雨水下水道工程完工。 | E22: 1.內政部業於104年9月11日辦理104年度部會管制施政計畫之「流域綜合治理計畫-雨水下水道」期中查證作業。 2.完成雨水下水道建設長度15,542公尺。 3.104年9月23日辦理「雲林縣斗南鎮三和街雨水下水道改善工程」工程抽查及「臺南市永康區大灣東路TC幹線雨水下水道工程」工程督導；104年9月24日辦理「彰化縣鹿港鎮丙幹線增設箱涵暨出口改善及E幹線出口閘門改善工程」工程督導。

Sheet 標案表
A1: 流域綜合治理計畫截至111年第2季標案執行情形一覽表(水產養殖排水)
A2: 統計截至111年6月30日
A3: 項次 | B3: 工程標案名稱 | C3: 執行機關 | D3: 決標金額 | E3: 預定進度 | F3: 實際進度 | G3: 承攬廠商 | H3: 規劃單位 | I3: 設計單位 | J3: 監造單位 | K3: 機關首長 | L3: 主辦人員 | M3: 工地主任(負責人)
D4: (千元) | E4: (%) | F4: (%)
A5: 1 | B5: 雲林縣新港北養殖區四中排改善工程 | C5: 行政院農業委員會漁業署 | D5: 29,707 | E5: 100 | F5: 100 | G5: 廣裕營造工程有限公司 | H5: 巨廷工程顧問股份有限公司 | I5: 巨廷工程顧問股份有限公司 | J5: 巨廷工程顧問股份有限公司 | K5: 陳添壽 | L5: 魏立帆 | M5: 林順宏
A6: =A5+1 -> 2 | B6: 雲林縣新港北養殖區一大排一中排改善工程 | C6: 行政院農業委員會漁業署 | D6: 6,240 | E6: 100 | F6: 100 | G6: 廣裕營造工程有限公司 | H6: 巨廷工程顧問股份有限公司 | I6: 巨廷工程顧問股份有限公司 | J6: 巨廷工程顧問股份有限公司 | K6: 陳添壽 | L6: 魏立帆 | M6: 陳鋒璋
A7: =A6+1 -> 3 | B7: 嘉義縣西新店養殖區二中排改善工程 | C7: 行政院農業委員會漁業署 | D7: 26,998 | E7: 100 | F7: 100 | G7: 集揚營造有限公司 | H7: 巨廷工程顧問股份有限公司 | I7: 巨廷工程顧問股份有限公司 | J7: 巨廷工程顧問股份有限公司 | K7: 陳添壽 | L7: 魏立帆 | M7: 李明煥
A8: 4 | B8: 嘉義縣北華養殖區二中排改善工程 | C8: 行政院農業委員會漁業署 | D8: 23,651 | E8: 100 | F8: 100 | G8: 廣裕營造工程有限公司 | H8: 巨廷工程顧問股份有限公司 | I8: 巨廷工程顧問股份有限公司 | J8: 巨廷工程顧問股份有限公司 | K8: 陳添壽 | L8: 魏立帆 | M8: 王世雄
A9: 5 | B9: 台南雙春養殖區四中排排水改善工程 | C9: 行政院農業委員會漁業署 | D9: 72,994 | E9: 100 | F9: 100 | G9: 長達營造工程有限公司 | H9: 浩海工程顧問股份有限公司 | I9: 浩海工程顧問股份有限公司 | J9: 浩海工程顧問股份有限公司 | K9: 陳添壽 | L9: 卓訓杰 | M9: 林奇夆
A10: 6 | B10: 台南雙春養殖區七中排排水改善工程 | C10: 行政院農業委員會漁業署 | D10: 19,570 | E10: 100 | F10: 100 | G10: 裕連興營造有限公司 | H10: 浩海工程顧問股份有限公司 | I10: 浩海工程顧問股份有限公司 | J10: 浩海工程顧問股份有限公司 | K10: 陳添壽 | L10: 卓訓杰 | M10: 楊智皓
A11: 7 | B11: 台南雙春養殖區五中排排水改善工程 | C11: 行政院農業委員會漁業署 | D11: 29,431 | E11: 100 | F11: 100 | G11: 集揚營造有限公司 | H11: 浩海工程顧問股份有限公司 | I11: 浩海工程顧問股份有限公司 | J11: 勇霖工程顧問股份有限公司 | K11: 陳添壽 | L11: 卓訓杰 | M11: 李建德
A12: 8 | B12: 台南國安養殖區一中排排水改善工程 | C12: 行政院農業委員會漁業署 | D12: 78,113 | E12: 100 | F12: 100 | G12: 耀進營造有限公司 | H12: 浩海工程顧問股份有限公司 | I12: 浩海工程顧問股份有限公司 | J12: 勇霖工程顧問股份有限公司 | K12: 陳添壽 | L12: 卓訓杰 | M12: 邱信仁
A13: 9 | B13: 永華三中排改善工程 | C13: 行政院農業委員會漁業署 | D13: 10,938 | E13: 100 | F13: 100 | G13: 韋達營造有限公司 | H13: 浩海工程顧問股份有限公司 | I13: 浩海工程顧問股份有限公司 | J13: 浩海工程顧問股份有限公司 | K13: 陳添壽 | L13: 林昭宏 | M13: 楊明正
A14: 10 | B14: 宜蘭縣竹安養殖區海水供應管線擴充工程 | C14: 宜蘭縣政府 | D14: 19,383 | E14: 100 | F14: 100 | G14: 合意營造股份有限公司 | H14: 巨廷工程顧問股份有限公司 | I14: 巨廷工程顧問股份有限公司 | J14: 巨廷工程顧問股份有限公司 | K14: 林聰賢 | L14: 盧仁杰 | M14: 游子健
A15: 11 | B15: 清水二中排改善工程 | C15: 宜蘭縣政府 | D15: 22,303 | E15: 100 | F15: 100 | G15: 龍祥營造股份有限公司 | H15: 巨廷工程顧問股份有限公司 | I15: 巨廷工程顧問股份有限公司 | J15: 巨廷工程顧問股份有限公司 | K15: 林聰賢 | L15: 盧仁杰 | M15: 阮天祥
A16: 12 | B16: 漢寶養殖區十三戶第三排一中排改善工程暨漢寶養殖區十三戶一中排改善工程 | C16: 彰化縣政府 | D16: 30,100 | E16: 100 | F16: 100 | G16: 成金營造工程有限公司 | H16: 容泰工程顧問有限公司 | I16: 容泰工程顧問有限公司 | J16: 容泰工程顧問有限公司 | K16: 魏明谷 | L16: 李文哲 | M16: 黃鴻霖
A17: 13 | B17: 清水排水改善工程 | C17: 宜蘭縣政府 | D17: 59,820 | E17: 100 | F17: 100 | G17: 清石營造有限公司 | H17: 巨廷工程顧問股份有限公司 | I17: 巨廷工程顧問股份有限公司 | J17: 巨廷工程顧問股份有限公司 | K17: 林聰賢 | L17: 洪睿志 | M17: 俞勝宜
A18: 14 | B18: 嘉義縣過路子養殖生產區二中排水改善工程 | C18: 行政院農業委員會漁業署 | D18: 66,890 | E18: 100 | F18: 100 | G18: 昶廣營造有限公司 | H18: 巨廷工程顧問股份有限公司 | I18: 巨廷工程顧問股份有限公司 | J18: 巨廷工程顧問股份有限公司 | K18: 陳添壽 | L18: 魏立帆 | M18: 林水王
A19: 15 | B19: 八洲排水1中排改善工程 | C19: 彰化縣政府 | D19: 88,880 | E19: 100 | F19: 100 | G19: 達鴻營造有限公司 | H19: 容泰工程顧問有限公司 | I19: 容泰工程顧問有限公司 | J19: 容泰工程顧問有限公司 | K19: 魏明谷 | L19: 李文哲 | M19: 許力仁
A20: 16 | B20: 義竹鄉海豐橋及北港仔橋橋梁改善應急工程 | C20: 嘉義縣政府 | D20: 31,000 | E20: 100 | F20: 100 | G20: 昶廣營造有限公司 | H20: 源隆技術顧問有限公司 | I20: 源隆技術顧問有限公司 | J20: 源隆技術顧問有限公司 | K20: 張花冠 | L20: 蔡秉杰 | M20: 吳明俊
A21: 17 | B21: 台南雙春養殖區六中排排水改善工程 | C21: 行政院農業委員會漁業署 | D21: 27,700 | E21: 100 | F21: 100 | G21: 元利開發股份有限公司 | H21: 巨廷工程顧問股份有限公司 | I21: 巨廷工程顧問股份有限公司 | J21: 巨廷工程顧問股份有限公司 | K21: 陳添壽 | L21: 卓訓杰 | M21: 林淑玲
A22: 18 | B22: 宜蘭縣新水養殖區清水三中排改善工程 | C22: 宜蘭縣政府 | D22: 22,200 | E22: 100 | F22: 100 | G22: 龍祥營造股份有限公司 | H22: 浩海工程顧問股份有限公司 | I22: 浩海工程顧問股份有限公司 | J22: 浩海工程顧問股份有限公司 | K22: 林聰賢 | L22: 洪睿志 | M22: 翁銘鴻
A23: 19 | B23: 屏東縣塭豐海水管線擴充工程 | C23: 屏東縣政府 | D23: 120,500 | E23: 100 | F23: 100 | G23: 屏南營造股份有限公司 | H23: 浩海工程顧問股份有限公司 | I23: 浩海工程顧問股份有限公司 | J23: 巨太工程顧問股份有限公司 | K23: 潘孟安 | L23: 黃紹緻 | M23: 陳昱勳
A24: 20 | B24: 台南雙春養殖區三中排排水改善工程 | C24: 行政院農業委員會漁業署 | D24: 37,680 | E24: 100 | F24: 100 | G24: 集揚營造有限公司 | H24: 巨廷工程顧問股份有限公司 | I24: 巨廷工程顧問股份有限公司 | J24: 巨廷工程顧問股份有限公司 | K24: 陳添壽 | L24: 卓訓杰 | M24: 李明燦
A25: 21 | B25: 新港北四之五中排改善工程 | C25: 行政院農業委員會漁業署 | D25: 26,980 | E25: 100 | F25: 100 | G25: 正傳營造有限公司 | H25: 巨廷工程顧問股份有限公司 | I25: 巨廷工程顧問股份有限公司 | J25: 巨廷工程顧問股份有限公司 | K25: 陳添壽 | L25: 魏立帆 | M25: 沈淑惠
A26: 22 | B26: 東好美一之一中排改善工程 | C26: 行政院農業委員會漁業署 | D26: 18,860 | E26: 100 | F26: 100 | G26: 承營營造有限公司 | H26: 巨廷工程顧問股份有限公司 | I26: 巨廷工程顧問股份有限公司 | J26: 巨廷工程顧問股份有限公司 | K26: 陳添壽 | L26: 魏立帆 | M26: 林昭吟
A27: 23 | B27: 戰車壕溝排水一中排改善工程 | C27: 行政院農業委員會漁業署 | D27: 32,420 | E27: 100 | F27: 100 | G27: 韋達營造有限公司 | H27: 浩海工程顧問股份有限公司 | I27: 浩海工程顧問股份有限公司 | J27: 浩海工程顧問股份有限公司 | K27: 陳添壽 | L27: 林昭宏 | M27: 楊明正
A28: 24 | B28: 公溝排水十三中排改善工程 | C28: 行政院農業委員會漁業署 | E28: 100 | F28: 100 | G28: 韋達營造有限公司 | H28: 浩海工程顧問股份有限公司 | I28: 浩海工程顧問股份有限公司 | J28: 浩海工程顧問股份有限公司 | K28: 陳添壽 | L28: 林昭宏 | M28: 楊明正
A29: 25 | B29: 永安養殖區公溝旁水閘門修繕工程 | C29: 高雄市政府 | D29: 1,630 | E29: 100 | F29: 100 | G29: 御翔土木包工有限公司 | H29: 誠蓄工程顧問股份有限公司 | I29: 誠蓄工程顧問股份有限公司 | J29: 誠蓄工程顧問股份有限公司 | K29: 陳菊 | L29: 鄭任天 | M29: 余文斌
A30: 26 | B30: LNG海水管線擴充工程(石斑路) | C30: 高雄市政府 | D30: 131,700 | E30: 100 | F30: 100 | G30: 高輝營造工程股份有限公司 | H30: 誠蓄工程顧問股份有限公司 | I30: 誠蓄工程顧問股份有限公司 | J30: 誠蓄工程顧問股份有限公司 | K30: 陳菊 | L30: 羅翔文 | M30: 柯賢界
A31: 27 | B31: 宜蘭縣大塭養殖區新崙排水改善工程 | C31: 宜蘭縣政府 | D31: 26,600 | E31: 100 | F31: 100 | G31: 龍祥營造股份有限公司 | H31: 浩海工程顧問股份有限公司 | I31: 浩海工程顧問股份有限公司 | J31: 浩海工程顧問股份有限公司 | K31: 陳金德 | L31: 陳佑怡 | M31: 阮天祥
A32: 28 | B32: 宜蘭縣四城港圳供排水路改善工程 | C32: 宜蘭縣政府 | D32: 35,980 | E32: 100 | F32: 100 | G32: 龍祥營造股份有限公司 | H32: 浩海工程顧問股份有限公司 | I32: 浩海工程顧問股份有限公司 | J32: 浩海工程顧問股份有限公司 | K32: 陳金德 | L32: 陳佑怡 | M32: 阮天祥
A33: 29 | B33: 宜蘭縣常興養殖區王通塭一中排改善工程 | C33: 宜蘭縣政府 | D33: 26,900 | E33: 100 | F33: 100 | G33: 龍祥營造股份有限公司 | H33: 浩海工程顧問股份有限公司 | I33: 浩海工程顧問股份有限公司 | J33: 浩海工程顧問股份有限公司 | K33: 陳金德 | L33: 陳佑怡 | M33: 阮天祥
A34: 30 | B34: 嘉義縣東好美養殖區東好美二中排改善工程 | C34: 行政院農業委員會漁業署 | D34: 12,470 | E34: 100 | F34: 100 | G34: 元利開發股份有限公司 | H34: 巨廷工程顧問股份有限公司 | I34: 巨廷工程顧問股份有限公司 | J34: 巨廷工程顧問股份有限公司 | K34: 黃鴻燕 | L34: 魏立帆 | M34: 林淑玲
A35: 31 | B35: 雲林縣下崙南一中排改善工程 | C35: 行政院農業委員會漁業署 | D35: 19,580 | E35: 100 | F35: 100 | G35: 億榮營造股份有限公司 | H35: 巨廷工程顧問股份有限公司 | I35: 巨廷工程顧問股份有限公司 | J35: 巨廷工程顧問股份有限公司 | K35: 黃鴻燕 | L35: 魏立帆 | M35: 賴素玫
A36: 32 | B36: 雲林縣羊稠厝大排一中排改善工程 | C36: 雲林縣政府 | D36: 15,500 | E36: 100 | F36: 100 | G36: 安立營造有限公司 | H36: 源隆技術顧問有限公司 | I36: 源隆技術顧問有限公司 | J36: 源隆技術顧問有限公司 | K36: 李進勇 | L36: 江瑞杰 | M36: 陳博恩
A37: 33 | B37: 嘉義縣竿仔寮一中排改善工程 | C37: 行政院農業委員會漁業署 | D37: 55,260 | E37: 100 | F37: 100 | G37: 集揚營造有限公司 | H37: 巨廷工程顧問股份有限公司 | I37: 巨廷工程顧問股份有限公司 | J37: 巨廷工程顧問股份有限公司 | K37: 黃鴻燕 | L37: 魏立帆 | M37: 李明燦
A38: 34 | B38: 臺南市國安一中排第二階段改善工程 | C38: 行政院農業委員會漁業署 | D38: 71,190 | E38: 100 | F38: 100 | G38: 欣德營造有限公司 | H38: 黎明工程顧問股份有限公司 | I38: 黎明工程顧問股份有限公司 | J38: 黎明工程顧問股份有限公司 | K38: 黃鴻燕 | L38: 黃千祐 | M38: 吳岳樺
A39: 35 | B39: 臺南市雙春七中排瓶頸箱涵改善工程 | C39: 臺南市政府 | D39: 18,280 | E39: 100 | F39: 100 | G39: 方章營造有限公司 | H39: 正昇工程顧問有限公司 | I39: 正昇工程顧問有限公司 | J39: 正昇工程顧問有限公司 | K39: 李孟諺 | L39: 莊智瑋 | M39: 王文章
A40: 36 | B40: 塭豐三中排改善工程 | C40: 屏東縣政府 | D40: 36,500 | E40: 100 | F40: 100 | G40: 瑋懋營造有限公司 | H40: 浩海工程顧問股份有限公司 | I40: 浩海工程顧問股份有限公司 | J40: 浩海工程顧問股份有限公司 | K40: 潘孟安 | L40: 黃少緻 | M40: 周學宗
A41: 37 | B41: 宜蘭縣壯圍養殖區海水供應管線擴充工程 | C41: 宜蘭縣政府 | D41: 79200 | E41: 100 | F41: 100 | G41: 達固營造有限公司 | H41: 宏峻工程顧問股份有限公司 | I41: 宏峻工程顧問股份有限公司 | J41: 宏峻工程顧問股份有限公司 | K41: 陳金德 | L41: 洪睿智 | M41: 鄭達三
A42: 38 | B42: 雲林縣下崙養殖排水改善工程 | C42: 雲林縣政府 | D42: 113000 | E42: 100 | F42: 100 | G42: 仕強營造股份有限公司 | H42: 黎明工程顧問股份有限公司 | I42: 黎明工程顧問股份有限公司 | J42: 黎明工程顧問股份有限公司 | K42: 李進勇 | L42: 江瑞杰 | M42: 張振煌
A43: 39 | B43: 嘉義縣好美一中排改善工程 | C43: 嘉義縣政府 | D43: 74880 | E43: 100 | F43: 100 | G43: 富岳營造有限公司 | H43: 旭城工程技術顧問有限公司 | I43: 旭城工程技術顧問有限公司 | J43: 旭城工程技術顧問有限公司 | K43: 張花冠 | L43: 曾啟銘 | M43: 蘇鴻祺
A44: 40 | B44: 臺南市保安養殖區排水路等5處改善工程 | C44: 臺南市政府 | D44: 73760 | E44: 100 | F44: 100 | G44: 耀進營造有限公司 | H44: 正昇工程顧問有限公司 | I44: 正昇工程顧問有限公司 | J44: 正昇工程顧問有限公司 | K44: 李孟諺 | L44: 莊智瑋 | M44: 陳奕均
A45: 41 | B45: 臺南市南興養殖區一中排及二中排改善工程 | C45: 臺南市政府
A46: 42 | B46: 塭豐養殖區30號道路排水改善工程 | C46: 屏東縣政府 | D46: 34000 | E46: 100 | F46: 100 | G46: 龍威營造有限公司 | H46: 宏峻工程顧問有限公司 | I46: 宏峻工程顧問有限公司 | J46: 宏峻工程顧問有限公司 | K46: 潘孟安 | L46: 黃少緻 | M46: 林奕佐
A47: 43 | B47: 宜蘭縣清水抽水站新增設備工程 | C47: 宜蘭縣政府 | D47: 17967 | E47: 100 | F47: 100 | G47: 達宏營造有限公司 | H47: 浩海工程顧問股份有限公司 | I47: 浩海工程顧問股份有限公司 | J47: 浩海工程顧問股份有限公司 | K47: 陳金德 | L47: 洪睿智 | M47: 游俊豐
A48: 44 | B48: 麥寮鄉魚塭集中區第一區排水改善工程 | C48: 雲林縣政府 | D48: 20360 | E48: 100 | F48: 100 | G48: 億榮營造股份有限公司 | H48: 太江工程顧問公司 | I48: 太江工程顧問公司 | J48: 太江工程顧問公司 | K48: 張麗善 | L48: 江瑞杰 | M48: 賴素玫
A49: 45 | B49: 嘉義縣好美里海埔地排水改善工程 | C49: 行政院農業委員會漁業署 | D49: 54120 | E49: 100 | F49: 100 | G49: 長達營造工程有限公司 | H49: 巨廷工程顧問股份有限公司 | I49: 巨廷工程顧問股份有限公司 | J49: 巨廷工程顧問股份有限公司 | K49: 黃鴻燕 | L49: 魏立帆 | M49: 林水源
